[Event "Titled Tuesday Blitz May 30 Early 2023"]
[White "Nihal Sarin"]
[Black "surrenderPLS"]
[WhiteFideId "25092340"]
[WhiteElo "2689"]
[BlackElo "2525"]
[Result "1-0"]
[Round "01"]
[TimeControl "180+2"]
[Date "2023.05.30"]
[WhiteClock "0:01:20"]
[BlackClock "0:00:02"]

1. d4 {[%clk 0:02:58]}  Nf6 {[%clk 0:02:57]} 2. Nf3 {[%clk 0:02:54]}  e6 {[%clk 0:02:48]} 3. g3 {[%clk 0:02:53]}  c5 {[%clk 0:02:46]} 4. Bg2 {[%clk 0:02:54]}  cxd4 {[%clk 0:02:44]} 5. Nxd4 {[%clk 0:02:55]}  Nc6 {[%clk 0:02:44]} 6. c4 {[%clk 0:02:55]}  Be7 {[%clk 0:02:44]} 7. Nc3 {[%clk 0:02:55]}  O-O {[%clk 0:02:44]} 8. O-O {[%clk 0:02:54]}  d5 {[%clk 0:02:38]} 9. cxd5 {[%clk 0:02:54]}  Nxd5 {[%clk 0:02:38]} 10. Nxd5 {[%clk 0:02:53]}  exd5 {[%clk 0:02:38]} 11. Be3 {[%clk 0:02:54]}  Bf6 {[%clk 0:02:33]} 12. Rc1 {[%clk 0:02:54]}  Bxd4 {[%clk 0:02:26]} 13. Bxd4 {[%clk 0:02:55]}  Be6 {[%clk 0:02:26]} 14. Bc5 {[%clk 0:02:54]}  Re8 {[%clk 0:02:26]} 15. Qb3 {[%clk 0:02:55]}  Qd7 {[%clk 0:02:25]} 16. Rfd1 {[%clk 0:02:53]}  Rad8 {[%clk 0:02:24]} 17. Qa3 {[%clk 0:02:46]}  b6 {[%clk 0:02:20]} 18. Bd4 {[%clk 0:02:46]}  Nxd4 {[%clk 0:02:16]} 19. Rxd4 {[%clk 0:02:46]}  Rc8 {[%clk 0:02:16]} 20. Rcd1 {[%clk 0:02:46]}  Rc5 {[%clk 0:02:13]} 21. e4 {[%clk 0:02:28]}  Rec8 {[%clk 0:01:04]} 22. exd5 {[%clk 0:02:23]}  Bh3 {[%clk 0:01:04]} 23. Bxh3 {[%clk 0:02:16]}  Qxh3 {[%clk 0:01:05]} 24. Qxa7 {[%clk 0:02:15]}  Rc2 {[%clk 0:00:33]} 25. Qa6 {[%clk 0:01:43]}  Rxb2 {[%clk 0:00:24]} 26. d6 {[%clk 0:01:43]}  g6 {[%clk 0:00:16]} 27. d7 {[%clk 0:01:28]}  Rd8 {[%clk 0:00:16]} 28. Qc4 {[%clk 0:01:21]}  Qf5 {[%clk 0:00:14]} 29. Rf4 {[%clk 0:01:22]}  Qe6 {[%clk 0:00:10]} 30. Qxe6 {[%clk 0:01:21]}  fxe6 {[%clk 0:00:11]} 31. a4 {[%clk 0:01:22]}  Kg7 {[%clk 0:00:09]} 32. Rd6 {[%clk 0:01:22]}  e5 {[%clk 0:00:09]} 33. Re4 {[%clk 0:01:21]}  Ra2 {[%clk 0:00:08]} 34. Rxe5 {[%clk 0:01:16]}  Rxa4 {[%clk 0:00:08]} 35. Re7+ {[%clk 0:01:17]}  Kf8 {[%clk 0:00:06]} 36. Rxh7 {[%clk 0:01:16]}  Raa8 {[%clk 0:00:07]} 37. Rxb6 {[%clk 0:01:14]}  Ra7 {[%clk 0:00:06]} 38. Rxg6 {[%clk 0:01:11]}  Rdxd7 {[%clk 0:00:06]} 39. Rxd7 {[%clk 0:01:12]}  Rxd7 {[%clk 0:00:06]} 40. Rg4 {[%clk 0:01:12]}  Kf7 {[%clk 0:00:07]} 41. Rf4+ {[%clk 0:01:13]}  Kg7 {[%clk 0:00:07]} 42. Kg2 {[%clk 0:01:13]}  Rd1 {[%clk 0:00:08]} 43. h4 {[%clk 0:01:14]}  Rd2 {[%clk 0:00:09]} 44. g4 {[%clk 0:01:15]}  Ra2 {[%clk 0:00:09]} 45. Kg3 {[%clk 0:01:16]}  Ra3+ {[%clk 0:00:10]} 46. f3 {[%clk 0:01:16]}  Ra2 {[%clk 0:00:11]} 47. h5 {[%clk 0:01:17]}  Ra1 {[%clk 0:00:12]} 48. Rf5 {[%clk 0:01:18]}  Rg1+ {[%clk 0:00:12]} 49. Kh4 {[%clk 0:01:19]}  Ra1 {[%clk 0:00:13]} 50. Kg5 {[%clk 0:01:19]}  Ra6 {[%clk 0:00:12]} 51. f4 {[%clk 0:01:19]}  Kg8 {[%clk 0:00:11]} 52. h6 {[%clk 0:01:19]}  Ra7 {[%clk 0:00:11]} 53. Kh5 {[%clk 0:01:19]}  Rc7 {[%clk 0:00:10]} 54. g5 {[%clk 0:01:20]}  Rc4 {[%clk 0:00:11]} 55. g6 {[%clk 0:01:20]}  Rc8 {[%clk 0:00:10]} 56. h7+ {[%clk 0:01:20]}  Kg7 {[%clk 0:00:10]} 57. Rf7+ {[%clk 0:01:20]}  Kh8 {[%clk 0:00:10]} 58. Kh6 {[%clk 0:01:21]}  Rg8 {[%clk 0:00:05]} 59. Rf8 {[%clk 0:01:19]}  Rxf8 {[%clk 0:00:02]} 60. g7# {[%clk 0:01:20]} 1-0


[Site "https://www.chess.com"]

[Event "Titled Tuesday Blitz May 30 Early 2023"]
[White "Jakic, Ivan"]
[Black "Bluebaum, Matthias"]
[WhiteFideId "14504901"]
[BlackFideId "24651516"]
[WhiteElo "2370"]
[BlackElo "2639"]
[Result "0-1"]
[Round "01"]
[TimeControl "180+2"]
[Date "2023.05.30"]
[WhiteClock "0:00:00"]
[BlackClock "0:00:45"]

1. e4 {[%clk 0:02:58]}  e6 {[%clk 0:03:00]} 2. d4 {[%clk 0:02:56]}  d5 {[%clk 0:03:01]} 3. Nd2 {[%clk 0:02:57]}  c5 {[%clk 0:03:01]} 4. exd5 {[%clk 0:02:57]}  Qxd5 {[%clk 0:03:02]} 5. Ngf3 {[%clk 0:02:57]}  cxd4 {[%clk 0:03:02]} 6. Bc4 {[%clk 0:02:57]}  Qd6 {[%clk 0:03:03]} 7. O-O {[%clk 0:02:58]}  Nf6 {[%clk 0:03:04]} 8. Nb3 {[%clk 0:02:58]}  Nc6 {[%clk 0:03:04]} 9. Nbxd4 {[%clk 0:02:58]}  Nxd4 {[%clk 0:03:05]} 10. Qxd4 {[%clk 0:02:59]}  Qxd4 {[%clk 0:03:05]} 11. Nxd4 {[%clk 0:03:00]}  Bd7 {[%clk 0:03:06]} 12. Bb3 {[%clk 0:02:59]}  Bc5 {[%clk 0:03:04]} 13. Rd1 {[%clk 0:02:55]}  O-O {[%clk 0:02:59]} 14. h3 {[%clk 0:02:55]}  Rfd8 {[%clk 0:02:58]} 15. c3 {[%clk 0:02:54]}  Be8 {[%clk 0:02:44]} 16. Be3 {[%clk 0:02:53]}  Bb6 {[%clk 0:02:31]} 17. Rd2 {[%clk 0:02:49]}  Nd5 {[%clk 0:02:30]} 18. Bxd5 {[%clk 0:02:47]}  Rxd5 {[%clk 0:02:31]} 19. Rad1 {[%clk 0:02:47]}  Rad8 {[%clk 0:02:30]} 20. Nc2 {[%clk 0:02:47]}  Rxd2 {[%clk 0:02:27]} 21. Rxd2 {[%clk 0:02:48]}  Rxd2 {[%clk 0:02:27]} 22. Bxd2 {[%clk 0:02:49]}  Bc7 {[%clk 0:02:27]} 23. Be3 {[%clk 0:02:48]}  b6 {[%clk 0:02:27]} 24. f3 {[%clk 0:02:44]}  e5 {[%clk 0:02:27]} 25. Kf2 {[%clk 0:02:44]}  Bc6 {[%clk 0:02:27]} 26. Nb4 {[%clk 0:02:44]}  Bb7 {[%clk 0:02:28]} 27. Nd3 {[%clk 0:02:42]}  f6 {[%clk 0:02:25]} 28. b4 {[%clk 0:02:41]}  Bd5 {[%clk 0:02:24]} 29. a4 {[%clk 0:02:38]}  Kf7 {[%clk 0:02:21]} 30. Nb2 {[%clk 0:02:10]}  Bc6 {[%clk 0:02:03]} 31. a5 {[%clk 0:02:05]}  Ke6 {[%clk 0:01:53]} 32. axb6 {[%clk 0:02:04]}  axb6 {[%clk 0:01:54]} 33. Nc4 {[%clk 0:01:57]}  b5 {[%clk 0:01:54]} 34. Na3 {[%clk 0:01:57]}  Bd6 {[%clk 0:01:48]} 35. Ke2 {[%clk 0:01:39]}  f5 {[%clk 0:01:48]} 36. g4 {[%clk 0:01:37]}  f4 {[%clk 0:01:37]} 37. Bf2 {[%clk 0:01:35]}  Kd7 {[%clk 0:01:22]} 38. Be1 {[%clk 0:01:34]}  Bd5 {[%clk 0:01:21]} 39. Bf2 {[%clk 0:01:21]}  Kc6 {[%clk 0:01:22]} 40. Be1 {[%clk 0:01:15]}  e4 {[%clk 0:01:22]} 41. fxe4 {[%clk 0:01:13]}  Bxe4 {[%clk 0:01:22]} 42. c4 {[%clk 0:01:05]}  bxc4 {[%clk 0:01:20]} 43. Nxc4 {[%clk 0:01:06]}  Bc7 {[%clk 0:01:20]} 44. Nd2 {[%clk 0:00:49]}  Bd5 {[%clk 0:01:18]} 45. Nf3 {[%clk 0:00:48]}  Kb5 {[%clk 0:01:17]} 46. Nd4+ {[%clk 0:00:44]}  Kc4 {[%clk 0:01:16]} 47. Nf5 {[%clk 0:00:45]}  g6 {[%clk 0:01:12]} 48. Ne7 {[%clk 0:00:30]}  Be4 {[%clk 0:01:08]} 49. Bd2 {[%clk 0:00:25]}  Be5 {[%clk 0:01:00]} 50. h4 {[%clk 0:00:19]}  f3+ {[%clk 0:00:54]} 51. Kf2 {[%clk 0:00:17]}  Kd3 {[%clk 0:00:54]} 52. Be1 {[%clk 0:00:06]}  Bf6 {[%clk 0:00:52]} 53. Ng8 {[%clk 0:00:05]}  Bxh4+ {[%clk 0:00:51]} 54. Kf1 {[%clk 0:00:06]}  Bg5 {[%clk 0:00:47]} 55. Bf2 {[%clk 0:00:05]}  Kd2 {[%clk 0:00:44]} 56. b5 {[%clk 0:00:05]}  Bd3+ {[%clk 0:00:44]} 57. Kg1 {[%clk 0:00:06]}  Bxb5 {[%clk 0:00:44]} 58. Bd4 {[%clk 0:00:04]}  Be3+ {[%clk 0:00:43]} 59. Bxe3+ {[%clk 0:00:04]}  Kxe3 {[%clk 0:00:44]} 60. Nf6 {[%clk 0:00:00]}  f2+ {[%clk 0:00:45]} 0-1


[Site "https://www.chess.com"]

[Event "Titled Tuesday Blitz May 30 Early 2023"]
[White "Paravyan, David"]
[Black "Chylewski, Patryk"]
[WhiteFideId "4194985"]
[BlackFideId "1186191"]
[WhiteElo "2563"]
[BlackElo "2163"]
[Result "0-1"]
[Round "01"]
[TimeControl "180+2"]
[Date "2023.05.30"]
[WhiteClock "0:00:00"]
[BlackClock "0:00:10"]

1. c4 {[%clk 0:02:53]}  e6 {[%clk 0:02:57]} 2. Nc3 {[%clk 0:02:50]}  d5 {[%clk 0:02:57]} 3. d4 {[%clk 0:02:51]}  a6 {[%clk 0:02:57]} 4. cxd5 {[%clk 0:02:51]}  exd5 {[%clk 0:02:57]} 5. Bf4 {[%clk 0:02:52]}  Nf6 {[%clk 0:02:55]} 6. e3 {[%clk 0:02:51]}  Be6 {[%clk 0:02:53]} 7. Bd3 {[%clk 0:02:51]}  Bd6 {[%clk 0:02:53]} 8. Nge2 {[%clk 0:02:50]}  Nbd7 {[%clk 0:02:52]} 9. Bxd6 {[%clk 0:02:49]}  cxd6 {[%clk 0:02:53]} 10. Nf4 {[%clk 0:02:50]}  O-O {[%clk 0:02:52]} 11. O-O {[%clk 0:02:50]}  b5 {[%clk 0:02:50]} 12. Qf3 {[%clk 0:02:49]}  Nb6 {[%clk 0:02:49]} 13. a3 {[%clk 0:02:48]}  Re8 {[%clk 0:02:48]} 14. h3 {[%clk 0:02:47]}  Rc8 {[%clk 0:02:48]} 15. Rac1 {[%clk 0:02:47]}  Qd7 {[%clk 0:02:47]} 16. Bb1 {[%clk 0:02:35]}  h6 {[%clk 0:02:46]} 17. Ba2 {[%clk 0:02:35]}  Qb7 {[%clk 0:02:41]} 18. Rfe1 {[%clk 0:02:25]}  Nc4 {[%clk 0:02:39]} 19. Bxc4 {[%clk 0:02:15]}  bxc4 {[%clk 0:02:32]} 20. Re2 {[%clk 0:02:14]}  Ne4 {[%clk 0:02:26]} 21. Nxe4 {[%clk 0:01:52]}  dxe4 {[%clk 0:02:26]} 22. Qg3 {[%clk 0:01:52]}  Bf5 {[%clk 0:01:58]} 23. d5 {[%clk 0:01:31]}  Re5 {[%clk 0:01:48]} 24. Rec2 {[%clk 0:01:26]}  Qb3 {[%clk 0:01:37]} 25. Ne2 {[%clk 0:01:20]}  Rxd5 {[%clk 0:01:33]} 26. Nd4 {[%clk 0:01:17]}  Qd3 {[%clk 0:01:01]} 27. Qf4 {[%clk 0:00:44]}  Bg6 {[%clk 0:00:58]} 28. Qg4 {[%clk 0:00:44]}  Rc7 {[%clk 0:00:55]} 29. Rd1 {[%clk 0:00:39]}  h5 {[%clk 0:00:41]} 30. Rxd3 {[%clk 0:00:24]}  hxg4 {[%clk 0:00:27]} 31. Rdc3 {[%clk 0:00:24]}  gxh3 {[%clk 0:00:23]} 32. Rxc4 {[%clk 0:00:24]}  Rxc4 {[%clk 0:00:22]} 33. Rxc4 {[%clk 0:00:25]}  hxg2 {[%clk 0:00:22]} 34. Rc6 {[%clk 0:00:18]}  a5 {[%clk 0:00:16]} 35. b4 {[%clk 0:00:17]}  axb4 {[%clk 0:00:15]} 36. axb4 {[%clk 0:00:18]}  Rg5 {[%clk 0:00:11]} 37. b5 {[%clk 0:00:18]}  Bh5 {[%clk 0:00:11]} 38. b6 {[%clk 0:00:18]}  Bf3 {[%clk 0:00:11]} 39. b7 {[%clk 0:00:04]}  Rh5 {[%clk 0:00:11]} 40. b8=Q+ {[%clk 0:00:05]}  Kh7 {[%clk 0:00:11]} 41. Nxf3 {[%clk 0:00:00]}  exf3 {[%clk 0:00:10]} 0-1


[Site "https://www.chess.com"]

[Event "Titled Tuesday Blitz May 30 Early 2023"]
[White "Jegorovas, Aleksandras"]
[Black "Bortnyk, Olexandr"]
[WhiteFideId "12801950"]
[BlackFideId "14120828"]
[WhiteElo "2247"]
[BlackElo "2734"]
[Result "0-1"]
[Round "01"]
[TimeControl "180+2"]
[Date "2023.05.30"]
[WhiteClock "0:00:14"]
[BlackClock "0:00:30"]

1. Nf3 {[%clk 0:02:59]}  Nf6 {[%clk 0:02:59]} 2. c4 {[%clk 0:02:58]}  b6 {[%clk 0:02:58]} 3. d4 {[%clk 0:02:54]}  Bb7 {[%clk 0:02:58]} 4. Nc3 {[%clk 0:02:54]}  g6 {[%clk 0:02:55]} 5. g3 {[%clk 0:02:44]}  Bg7 {[%clk 0:02:55]} 6. Bg2 {[%clk 0:02:45]}  O-O {[%clk 0:02:55]} 7. O-O {[%clk 0:02:44]}  Ne4 {[%clk 0:02:55]} 8. Nxe4 {[%clk 0:02:39]}  Bxe4 {[%clk 0:02:56]} 9. Be3 {[%clk 0:02:37]}  d5 {[%clk 0:02:52]} 10. cxd5 {[%clk 0:02:26]}  Qxd5 {[%clk 0:02:53]} 11. Qd2 {[%clk 0:02:24]}  Nc6 {[%clk 0:02:51]} 12. Rac1 {[%clk 0:02:14]}  Rfd8 {[%clk 0:02:45]} 13. Rfd1 {[%clk 0:02:08]}  Qxa2 {[%clk 0:02:40]} 14. Bh6 {[%clk 0:01:18]}  Nxd4 {[%clk 0:02:23]} 15. Nxd4 {[%clk 0:01:16]}  Rxd4 {[%clk 0:02:22]} 16. Qe3 {[%clk 0:00:59]}  Rxd1+ {[%clk 0:01:57]} 17. Rxd1 {[%clk 0:00:59]}  Bxg2 {[%clk 0:01:48]} 18. Bxg7 {[%clk 0:00:56]}  Kxg7 {[%clk 0:01:49]} 19. Kxg2 {[%clk 0:00:50]}  Qxb2 {[%clk 0:01:44]} 20. Qxe7 {[%clk 0:00:49]}  c5 {[%clk 0:01:36]} 21. e4 {[%clk 0:00:45]}  Qf6 {[%clk 0:01:25]} 22. Qb7 {[%clk 0:00:44]}  Re8 {[%clk 0:01:18]} 23. Rd7 {[%clk 0:00:42]}  a5 {[%clk 0:01:14]} 24. f4 {[%clk 0:00:40]}  Qb2+ {[%clk 0:01:03]} 25. Kh3 {[%clk 0:00:40]}  Qb3 {[%clk 0:01:02]} 26. e5 {[%clk 0:00:38]}  a4 {[%clk 0:00:55]} 27. Rd5 {[%clk 0:00:36]}  Qf3 {[%clk 0:00:42]} 28. Qc6 {[%clk 0:00:25]}  Re6 {[%clk 0:00:39]} 29. Qa8 {[%clk 0:00:17]}  Qf1+ {[%clk 0:00:31]} 30. Kh4 {[%clk 0:00:16]}  Qg2 {[%clk 0:00:31]} 31. h3 {[%clk 0:00:15]}  Qf3 {[%clk 0:00:29]} 32. g4 {[%clk 0:00:14]}  Qf2+ {[%clk 0:00:29]} 33. Kg5 {[%clk 0:00:14]}  h6# {[%clk 0:00:30]} 0-1


[Site "https://www.chess.com"]

[Event "Titled Tuesday Blitz May 30 Early 2023"]
[White "Martinez Alcantara, Jose Eduardo"]
[Black "Goffredo_Fofi"]
[WhiteFideId "3805662"]
[WhiteElo "2711"]
[BlackElo "2515"]
[Result "1-0"]
[Round "01"]
[TimeControl "180+2"]
[Date "2023.05.30"]
[WhiteClock "0:01:29"]
[BlackClock "0:00:16"]

1. e4 {[%clk 0:02:59]}  c6 {[%clk 0:03:00]} 2. d4 {[%clk 0:02:59]}  d5 {[%clk 0:03:00]} 3. e5 {[%clk 0:02:59]}  Bf5 {[%clk 0:03:00]} 4. h4 {[%clk 0:03:00]}  h5 {[%clk 0:03:00]} 5. Bd3 {[%clk 0:03:00]}  Bxd3 {[%clk 0:03:00]} 6. Qxd3 {[%clk 0:03:01]}  Qa5+ {[%clk 0:03:00]} 7. b4 {[%clk 0:03:01]}  Qxb4+ {[%clk 0:03:00]} 8. Nd2 {[%clk 0:03:01]}  e6 {[%clk 0:03:01]} 9. Rb1 {[%clk 0:03:01]}  Qe7 {[%clk 0:03:01]} 10. Ne2 {[%clk 0:03:02]}  Qd7 {[%clk 0:03:01]} 11. Nf3 {[%clk 0:03:01]}  c5 {[%clk 0:03:00]} 12. O-O {[%clk 0:02:51]}  Nc6 {[%clk 0:02:59]} 13. c3 {[%clk 0:02:49]}  Nh6 {[%clk 0:02:43]} 14. Bg5 {[%clk 0:02:34]}  c4 {[%clk 0:02:11]} 15. Qd2 {[%clk 0:02:29]}  Be7 {[%clk 0:02:11]} 16. Ng3 {[%clk 0:02:26]}  O-O-O {[%clk 0:01:46]} 17. Nxh5 {[%clk 0:02:11]}  Nf5 {[%clk 0:01:42]} 18. g4 {[%clk 0:02:12]}  Rh7 {[%clk 0:01:20]} 19. Kg2 {[%clk 0:01:54]}  Rdh8 {[%clk 0:01:19]} 20. Rh1 {[%clk 0:01:55]}  Qd8 {[%clk 0:01:11]} 21. Qf4 {[%clk 0:01:36]}  f6 {[%clk 0:00:39]} 22. gxf5 {[%clk 0:01:28]}  Rxh5 {[%clk 0:00:36]} 23. Qg4 {[%clk 0:01:27]}  fxg5 {[%clk 0:00:30]} 24. hxg5 {[%clk 0:01:28]}  Rxh1 {[%clk 0:00:30]} 25. Rxh1 {[%clk 0:01:29]}  Rxh1 {[%clk 0:00:30]} 26. Kxh1 {[%clk 0:01:30]}  exf5 {[%clk 0:00:27]} 27. Qxf5+ {[%clk 0:01:31]}  Qd7 {[%clk 0:00:26]} 28. Qf7 {[%clk 0:01:30]}  Qh3+ {[%clk 0:00:19]} 29. Kg1 {[%clk 0:01:30]}  Qxf3 {[%clk 0:00:16]} 30. Qxf3 {[%clk 0:01:29]} 1-0


[Site "https://www.chess.com"]

[Event "Titled Tuesday Blitz May 30 Early 2023"]
[White "Garakov, Mikhael"]
[Black "Le, Tuan Minh"]
[WhiteFideId "4169034"]
[BlackFideId "12401153"]
[WhiteElo "2347"]
[BlackElo "2566"]
[Result "0-1"]
[Round "01"]
[TimeControl "180+2"]
[Date "2023.05.30"]
[WhiteClock "0:00:00"]
[BlackClock "0:00:19"]

1. e4 {[%clk 0:02:59]}  c5 {[%clk 0:02:53]} 2. Nf3 {[%clk 0:02:55]}  Nf6 {[%clk 0:02:53]} 3. e5 {[%clk 0:02:53]}  Nd5 {[%clk 0:02:52]} 4. Nc3 {[%clk 0:02:53]}  e6 {[%clk 0:02:51]} 5. g3 {[%clk 0:02:37]}  Nc6 {[%clk 0:02:51]} 6. Bg2 {[%clk 0:02:36]}  d6 {[%clk 0:02:51]} 7. exd6 {[%clk 0:02:33]}  Bxd6 {[%clk 0:02:52]} 8. O-O {[%clk 0:02:23]}  O-O {[%clk 0:02:52]} 9. d4 {[%clk 0:02:14]}  Nxc3 {[%clk 0:02:44]} 10. bxc3 {[%clk 0:02:14]}  h6 {[%clk 0:02:37]} 11. Be3 {[%clk 0:02:08]}  Qa5 {[%clk 0:02:31]} 12. Nd2 {[%clk 0:02:01]}  cxd4 {[%clk 0:02:09]} 13. cxd4 {[%clk 0:01:56]}  Be7 {[%clk 0:02:04]} 14. c4 {[%clk 0:01:51]}  Rd8 {[%clk 0:02:01]} 15. Nb3 {[%clk 0:01:51]}  Qa4 {[%clk 0:02:01]} 16. Qe2 {[%clk 0:01:51]}  b6 {[%clk 0:01:57]} 17. d5 {[%clk 0:01:43]}  exd5 {[%clk 0:01:31]} 18. Bxd5 {[%clk 0:00:55]}  Bf6 {[%clk 0:01:28]} 19. Rad1 {[%clk 0:00:52]}  Bh3 {[%clk 0:01:26]} 20. Bxf7+ {[%clk 0:00:28]}  Kxf7 {[%clk 0:01:13]} 21. Qh5+ {[%clk 0:00:27]}  Kg8 {[%clk 0:01:14]} 22. Qxh3 {[%clk 0:00:28]}  Qxc4 {[%clk 0:01:14]} 23. Rc1 {[%clk 0:00:25]}  Qd5 {[%clk 0:01:06]} 24. Qg2 {[%clk 0:00:24]}  Ne5 {[%clk 0:01:04]} 25. Qxd5+ {[%clk 0:00:20]}  Rxd5 {[%clk 0:01:05]} 26. Rfd1 {[%clk 0:00:18]}  Nd3 {[%clk 0:01:04]} 27. Rc7 {[%clk 0:00:16]}  Nb4 {[%clk 0:00:57]} 28. Rxd5 {[%clk 0:00:15]}  Nxd5 {[%clk 0:00:58]} 29. Rd7 {[%clk 0:00:14]}  Nxe3 {[%clk 0:00:51]} 30. fxe3 {[%clk 0:00:15]}  Re8 {[%clk 0:00:51]} 31. Kf2 {[%clk 0:00:15]}  Bg5 {[%clk 0:00:51]} 32. Rd3 {[%clk 0:00:11]}  Rc8 {[%clk 0:00:48]} 33. h4 {[%clk 0:00:10]}  Bf6 {[%clk 0:00:45]} 34. Kf3 {[%clk 0:00:10]}  Rc2 {[%clk 0:00:43]} 35. Rd2 {[%clk 0:00:11]}  Rc3 {[%clk 0:00:44]} 36. Ke4 {[%clk 0:00:10]}  h5 {[%clk 0:00:41]} 37. Nd4 {[%clk 0:00:10]}  Kf7 {[%clk 0:00:36]} 38. Nb5 {[%clk 0:00:07]}  Rc4+ {[%clk 0:00:36]} 39. Kf3 {[%clk 0:00:07]}  Ra4 {[%clk 0:00:36]} 40. Nd6+ {[%clk 0:00:04]}  Kg6 {[%clk 0:00:32]} 41. Ne4 {[%clk 0:00:04]}  Ra3 {[%clk 0:00:27]} 42. Nxf6 {[%clk 0:00:04]}  gxf6 {[%clk 0:00:27]} 43. Kf4 {[%clk 0:00:04]}  b5 {[%clk 0:00:25]} 44. e4 {[%clk 0:00:04]}  Ra4 {[%clk 0:00:20]} 45. Rb2 {[%clk 0:00:03]}  a6 {[%clk 0:00:20]} 46. Rg2 {[%clk 0:00:00]}  f5 {[%clk 0:00:19]} 0-1


[Site "https://www.chess.com"]

[Event "Titled Tuesday Blitz May 30 Early 2023"]
[White "Lazavik, Denis"]
[Black "Ladan, Nicholas"]
[WhiteFideId "13515110"]
[BlackFideId "30918855"]
[WhiteElo "2560"]
[BlackElo "2167"]
[Result "0-1"]
[Round "01"]
[TimeControl "180+2"]
[Date "2023.05.30"]
[WhiteClock "0:00:04"]
[BlackClock "0:00:10"]

1. d4 {[%clk 0:03:00]}  d5 {[%clk 0:02:59]} 2. c4 {[%clk 0:03:01]}  c6 {[%clk 0:02:59]} 3. Nf3 {[%clk 0:03:00]}  Nf6 {[%clk 0:02:59]} 4. Qc2 {[%clk 0:02:58]}  g6 {[%clk 0:02:55]} 5. cxd5 {[%clk 0:02:58]}  cxd5 {[%clk 0:02:54]} 6. Bf4 {[%clk 0:02:58]}  Nc6 {[%clk 0:02:54]} 7. Nc3 {[%clk 0:02:58]}  a6 {[%clk 0:02:50]} 8. e3 {[%clk 0:02:57]}  Bg7 {[%clk 0:02:50]} 9. Be2 {[%clk 0:02:56]}  O-O {[%clk 0:02:47]} 10. O-O {[%clk 0:02:55]}  Nh5 {[%clk 0:02:41]} 11. Bg5 {[%clk 0:02:53]}  h6 {[%clk 0:02:39]} 12. Bh4 {[%clk 0:02:49]}  Bf5 {[%clk 0:02:31]} 13. Qb3 {[%clk 0:02:47]}  g5 {[%clk 0:02:27]} 14. Bg3 {[%clk 0:02:42]}  Nxg3 {[%clk 0:02:27]} 15. hxg3 {[%clk 0:02:41]}  e6 {[%clk 0:02:24]} 16. Qxb7 {[%clk 0:02:30]}  Na5 {[%clk 0:02:10]} 17. Qb4 {[%clk 0:02:29]}  Rb8 {[%clk 0:02:10]} 18. Qa3 {[%clk 0:02:28]}  Nc4 {[%clk 0:01:51]} 19. Bxc4 {[%clk 0:02:22]}  dxc4 {[%clk 0:01:52]} 20. e4 {[%clk 0:02:05]}  Bg4 {[%clk 0:01:43]} 21. Ne5 {[%clk 0:02:03]}  Bxe5 {[%clk 0:01:37]} 22. dxe5 {[%clk 0:02:02]}  Qb6 {[%clk 0:01:38]} 23. Na4 {[%clk 0:01:48]}  Qd4 {[%clk 0:01:31]} 24. Qc3 {[%clk 0:01:18]}  Rfd8 {[%clk 0:01:09]} 25. Qxd4 {[%clk 0:01:16]}  Rxd4 {[%clk 0:01:10]} 26. f3 {[%clk 0:01:16]}  Bh5 {[%clk 0:01:10]} 27. Rf2 {[%clk 0:01:12]}  g4 {[%clk 0:01:04]} 28. Nc3 {[%clk 0:01:03]}  Rd3 {[%clk 0:00:56]} 29. Raf1 {[%clk 0:00:58]}  Bg6 {[%clk 0:00:42]} 30. Rc2 {[%clk 0:00:54]}  Bh5 {[%clk 0:00:38]} 31. Ne2 {[%clk 0:00:49]}  gxf3 {[%clk 0:00:36]} 32. Nf4 {[%clk 0:00:49]}  fxg2 {[%clk 0:00:30]} 33. Rxg2 {[%clk 0:00:19]}  Bf3 {[%clk 0:00:28]} 34. Rgf2 {[%clk 0:00:18]}  Bxe4 {[%clk 0:00:20]} 35. Nxd3 {[%clk 0:00:19]}  cxd3 {[%clk 0:00:20]} 36. Re1 {[%clk 0:00:19]}  Bf5 {[%clk 0:00:18]} 37. Rd2 {[%clk 0:00:16]}  h5 {[%clk 0:00:18]} 38. Kf2 {[%clk 0:00:16]}  Kg7 {[%clk 0:00:19]} 39. Ke3 {[%clk 0:00:17]}  Kg6 {[%clk 0:00:19]} 40. Rb1 {[%clk 0:00:15]}  Rb4 {[%clk 0:00:19]} 41. Kf2 {[%clk 0:00:14]}  Kg5 {[%clk 0:00:19]} 42. b3 {[%clk 0:00:14]}  Re4 {[%clk 0:00:17]} 43. Re1 {[%clk 0:00:14]}  Rg4 {[%clk 0:00:17]} 44. a3 {[%clk 0:00:14]}  h4 {[%clk 0:00:16]} 45. gxh4+ {[%clk 0:00:14]}  Rxh4 {[%clk 0:00:17]} 46. Ke3 {[%clk 0:00:13]}  Re4+ {[%clk 0:00:16]} 47. Kf2 {[%clk 0:00:13]}  Rf4+ {[%clk 0:00:16]} 48. Kg1 {[%clk 0:00:11]}  Rh4 {[%clk 0:00:16]} 49. b4 {[%clk 0:00:10]}  Be4 {[%clk 0:00:12]} 50. a4 {[%clk 0:00:09]}  Kf4 {[%clk 0:00:10]} 51. Rf1+ {[%clk 0:00:02]}  Bf3 {[%clk 0:00:10]} 52. Rh2 {[%clk 0:00:02]}  Rxh2 {[%clk 0:00:07]} 53. Kxh2 {[%clk 0:00:02]}  d2 {[%clk 0:00:08]} 54. b5 {[%clk 0:00:03]}  axb5 {[%clk 0:00:08]} 55. axb5 {[%clk 0:00:04]}  d1=Q {[%clk 0:00:08]} 56. Rxd1 {[%clk 0:00:05]}  Bxd1 {[%clk 0:00:09]} 57. b6 {[%clk 0:00:04]}  Bf3 {[%clk 0:00:10]} 0-1


[Site "https://www.chess.com"]

[Event "Titled Tuesday Blitz May 30 Early 2023"]
[White "Pranav, V"]
[Black "Bruedigam, Martin"]
[WhiteFideId "25060783"]
[BlackFideId "24608033"]
[WhiteElo "2515"]
[BlackElo "2331"]
[Result "1/2-1/2"]
[Round "01"]
[TimeControl "180+2"]
[Date "2023.05.30"]
[WhiteClock "0:00:07"]
[BlackClock "0:00:05"]

1. e4 {[%clk 0:03:00]}  c6 {[%clk 0:02:59]} 2. d4 {[%clk 0:02:59]}  d5 {[%clk 0:02:59]} 3. e5 {[%clk 0:02:59]}  Bf5 {[%clk 0:02:58]} 4. Nf3 {[%clk 0:02:59]}  e6 {[%clk 0:02:58]} 5. Be2 {[%clk 0:02:59]}  Nd7 {[%clk 0:02:58]} 6. c3 {[%clk 0:02:58]}  a5 {[%clk 0:02:58]} 7. O-O {[%clk 0:02:58]}  a4 {[%clk 0:02:57]} 8. Nbd2 {[%clk 0:02:56]}  a3 {[%clk 0:02:54]} 9. b4 {[%clk 0:02:55]}  f6 {[%clk 0:02:37]} 10. exf6 {[%clk 0:02:52]}  Ngxf6 {[%clk 0:02:38]} 11. Nh4 {[%clk 0:02:52]}  Bd6 {[%clk 0:02:36]} 12. Nxf5 {[%clk 0:02:47]}  exf5 {[%clk 0:02:37]} 13. Bd3 {[%clk 0:02:48]}  Ne4 {[%clk 0:02:23]} 14. Bxe4 {[%clk 0:02:15]}  fxe4 {[%clk 0:02:12]} 15. Qg4 {[%clk 0:02:14]}  Nf6 {[%clk 0:01:21]} 16. Qxg7 {[%clk 0:02:00]}  Bxh2+ {[%clk 0:00:25]} 17. Kxh2 {[%clk 0:01:54]}  Rg8 {[%clk 0:00:25]} 18. Qxb7 {[%clk 0:01:54]}  Ng4+ {[%clk 0:00:09]} 19. Kg1 {[%clk 0:01:53]}  Qh4 {[%clk 0:00:08]} 20. Nf3 {[%clk 0:01:46]}  exf3 {[%clk 0:00:08]} 21. Bf4 {[%clk 0:01:46]}  Ne3 {[%clk 0:00:02]} 22. Bg3 {[%clk 0:01:14]}  Rxg3 {[%clk 0:00:01]} 23. fxg3 {[%clk 0:01:12]}  Qxg3 {[%clk 0:00:02]} 24. Qxa8+ {[%clk 0:01:12]}  Kd7 {[%clk 0:00:01]} 25. Qb7+ {[%clk 0:01:12]}  Kd8 {[%clk 0:00:01]} 26. Rf2 {[%clk 0:00:58]}  Ng4 {[%clk 0:00:02]} 27. Qa8+ {[%clk 0:00:42]}  Kd7 {[%clk 0:00:01]} 28. Qa7+ {[%clk 0:00:41]}  Kd8 {[%clk 0:00:02]} 29. Qa8+ {[%clk 0:00:22]}  Kd7 {[%clk 0:00:03]} 30. Rxf3 {[%clk 0:00:21]}  Qh2+ {[%clk 0:00:02]} 31. Kf1 {[%clk 0:00:21]}  Qh1+ {[%clk 0:00:03]} 32. Ke2 {[%clk 0:00:22]}  Qxg2+ {[%clk 0:00:04]} 33. Ke1 {[%clk 0:00:23]}  Qxf3 {[%clk 0:00:04]} 34. Qb7+ {[%clk 0:00:20]}  Kd6 {[%clk 0:00:04]} 35. Qb8+ {[%clk 0:00:14]}  Kd7 {[%clk 0:00:04]} 36. Qb7+ {[%clk 0:00:11]}  Kd6 {[%clk 0:00:05]} 37. Qb8+ {[%clk 0:00:12]}  Kd7 {[%clk 0:00:05]} 38. Qb7+ {[%clk 0:00:07]} 1/2-1/2


[Site "https://www.chess.com"]